[Event "NJSK 2023 Jeugd A"]
[Site "Almelo, Netherlands"]
[Date "2023.05.04"]
[Round "5.3"]
[White "Wierenga, Jael"]
[Black "Moskalets, Sofiia"]
[Result "0-1"]
[TimeControl "90min/40moves + 30min + 30sec/move"]
[WhiteElo "1772"]
[BlackElo "1722"]

1. d4 {[%clk 01:30:59]} Nf6 {[%clk 01:30:42]} {[%emt 00:00:18]} 2. c4 {[%clk
01:30:40]} {[%emt 00:00:49]} g6 {[%clk 01:31:02]} {[%emt 00:00:10]} 3. Nc3
{[%clk 01:30:58]} {[%emt 00:00:12]} Bg7 {[%clk 01:31:26]} {[%emt 00:00:05]} 4.
e4 {[%clk 01:31:24]} {[%emt 00:00:03]} O-O {[%clk 01:31:48]} {[%emt 00:00:08]}
5. f3 {[%clk 01:31:37]} {[%emt 00:00:17]} d6 {[%clk 01:32:03]} {[%emt
00:00:16]} 6. Be3 {[%clk 01:32:03]} {[%emt 00:00:04]} e5 {[%clk 01:30:55]}
{[%emt 00:01:38]} 7. Nge2 {[%clk 01:31:52]} {[%emt 00:00:41]} Nc6 {[%clk
01:26:30]} {[%emt 00:04:55]} 8. Qd2 {[%clk 01:32:03]} {[%emt 00:00:18]} exd4
{[%clk 01:19:51]} {[%emt 00:07:11]} 9. Nxd4 {[%clk 01:32:26]} {[%emt 00:00:07]}
Nxd4 {[%clk 01:09:20]} {[%emt 00:11:01]} 10. Bxd4 {[%clk 01:31:57]} {[%emt
00:00:59]} Be6 {[%clk 01:09:28]} {[%emt 00:00:22]} 11. O-O-O {[%clk 01:28:58]}
{[%emt 00:03:29]} a6 {[%clk 01:07:22]} {[%emt 00:02:36]} 12. Nd5 {[%clk
01:22:14]} {[%emt 00:07:13]} Bxd5 {[%clk 00:55:30]} {[%emt 00:12:23]} 13. cxd5
{[%clk 01:20:48]} {[%emt 00:01:56]} c5 {[%clk 00:49:12]} {[%emt 00:06:48]} 14.
Be3 {[%clk 01:17:17]} {[%emt 00:04:00]} b5 {[%clk 00:42:39]} {[%emt 00:07:04]}
15. h4 {[%clk 01:15:31]} {[%emt 00:02:15]} Rc8 {[%clk 00:34:07]} {[%emt
00:09:02]} 16. Kb1 {[%clk 01:02:34]} {[%emt 00:13:27]} Re8 {[%clk 00:24:46]}
{[%emt 00:09:51]} 17. g4 {[%clk 00:55:16]} {[%emt 00:07:48]} Qe7 {[%clk
00:20:30]} {[%emt 00:04:46]} 18. Bg2 {[%clk 00:45:50]} {[%emt 00:09:56]} Nd7
{[%clk 00:17:53]} {[%emt 00:03:08]} 19. Bg5 {[%clk 00:38:08]} {[%emt 00:08:11]}
f6 {[%clk 00:16:33]} {[%emt 00:01:50]} 20. Bf4 {[%clk 00:33:09]} {[%emt
00:05:29]} Nb6 {[%clk 00:13:03]} {[%emt 00:04:00]} 21. Bf1 {[%clk 00:29:58]}
{[%emt 00:03:41]} c4 {[%clk 00:10:23]} {[%emt 00:03:11]} 22. Qb4 {[%clk
00:22:05]} {[%emt 00:08:22]} Red8 {[%clk 00:07:58]} {[%emt 00:02:55]} 23. Rc1
{[%clk 00:18:39]} {[%emt 00:03:56]} Qd7 {[%clk 00:06:21]} {[%emt 00:02:07]} 24.
Be3 {[%clk 00:17:06]} {[%emt 00:02:03]} Na4 {[%clk 00:06:18]} {[%emt 00:00:32]}
25. Bh3 {[%clk 00:14:36]} {[%emt 00:03:01]} Qe7 {[%clk 00:02:51]} {[%emt
00:03:57]} 26. Bd4 {[%clk 00:11:52]} {[%emt 00:03:14]} f5 {[%clk 00:02:12]}
{[%emt 00:01:09]} 27. e5 {[%clk 00:08:36]} {[%emt 00:03:47]} Bxe5 {[%clk
00:02:01]} {[%emt 00:00:40]} 28. Rce1 {[%clk 00:08:05]} {[%emt 00:01:01]} Qf6
{[%clk 00:02:13]} {[%emt 00:00:18]} 29. Bxe5 {[%clk 00:07:07]} {[%emt
00:01:27]} dxe5 {[%clk 00:02:40]} {[%emt 00:00:04]} 30. gxf5 {[%clk 00:07:20]}
{[%emt 00:00:17]} gxf5 {[%clk 00:03:02]} {[%emt 00:00:08]} 31. Rhg1+ {[%clk
00:07:30]} {[%emt 00:00:19]} Kh8 {[%clk 00:03:27]} {[%emt 00:00:05]} 32. Rg5
{[%clk 00:07:35]} {[%emt 00:00:26]} Rxd5 {[%clk 00:01:55]} {[%emt 00:02:02]} 33.
Rxf5 {[%clk 00:07:24]} {[%emt 00:00:41]} Qd8 {[%clk 00:02:02]} {[%emt
00:00:23]} 34. a3 {[%clk 00:06:29]} {[%emt 00:01:26]} a5 {[%clk 00:01:26]}
{[%emt 00:01:07]} 35. Rf8+ {[%clk 00:01:54]} {[%emt 00:05:04]} Qxf8 {[%clk
00:01:51]} {[%emt 00:00:05]} 36. Qxa5 {[%clk 00:02:20]} {[%emt 00:00:05]} Rcd8
{[%clk 00:01:51]} {[%emt 00:00:30]} 37. Re3 {[%clk 00:01:46]} {[%emt 00:01:02]}
Qf4 {[%clk 00:01:56]} {[%emt 00:00:26]} 38. Qa7 {[%clk 00:01:43]} {[%emt
00:00:34]} Qd4 {[%clk 00:01:56]} {[%emt 00:00:30]} 39. Qa6 {[%clk 00:01:24]}
{[%emt 00:00:49]} 0-1

[Event "NJSK 2023 Jeugd A"]
[Site "Almelo, Netherlands"]
[Date "2023.05.04"]
[Round "5.4"]
[White "Groen, Jari"]
[Black "Van Kuijk, Vadim"]
[Result "1/2-1/2"]
[TimeControl "90min/40moves + 30min + 30sec/move"]
[WhiteElo "2028"]
[BlackElo "1968"]

1. e4 {[%clk 01:30:58]} {[%emt 00:00:02]} c6 {[%clk 01:30:56]} {[%emt
00:00:04]} 2. d4 {[%clk 01:31:22]} {[%emt 00:00:07]} d5 {[%clk 01:31:21]}
{[%emt 00:00:04]} 3. e5 {[%clk 01:31:46]} {[%emt 00:00:06]} Bf5 {[%clk
01:31:45]} {[%emt 00:00:07]} 4. Nf3 {[%clk 01:31:45]} {[%emt 00:00:31]} e6
{[%clk 01:32:09]} {[%emt 00:00:06]} 5. Be2 {[%clk 01:31:58]} {[%emt 00:00:17]}
c5 {[%clk 01:32:27]} {[%emt 00:00:13]} 6. Be3 {[%clk 01:32:08]} {[%emt
00:00:19]} Qb6 {[%clk 01:32:50]} {[%emt 00:00:07]} 7. Nc3 {[%clk 01:31:56]}
{[%emt 00:00:42]} Nc6 {[%clk 01:32:51]} {[%emt 00:00:29]} 8. O-O {[%clk
01:31:57]} {[%emt 00:00:29]} Qxb2 {[%clk 01:33:00]} 9. Qe1 {[%clk 01:31:56]}
{[%emt 00:00:53]} cxd4 {[%clk 01:33:11]} {[%emt 00:00:19]} 10. Bxd4 {[%clk
01:31:59]} {[%emt 00:00:27]} Nxd4 {[%clk 01:33:31]} {[%emt 00:00:10]} 11. Nxd4
{[%clk 01:32:22]} {[%emt 00:00:07]} Bb4 {[%clk 01:33:33]} {[%emt 00:00:28]} 12.
Ndb5 {[%clk 01:31:02]} {[%emt 00:01:50]} Ba5 {[%clk 01:33:45]} {[%emt
00:00:18]} 13. Rb1 {[%clk 01:30:51]} {[%emt 00:00:42]} Qxc2 {[%clk 01:34:05]}
{[%emt 00:00:09]} 14. Rc1 {[%clk 01:31:10]} {[%emt 00:00:10]} Qb2 {[%clk
01:33:42]} {[%emt 00:00:53]} 15. g4 {[%clk 01:30:31]} {[%emt 00:01:10]} Bg6
{[%clk 01:33:40]} {[%emt 00:00:32]} 16. f4 {[%clk 01:30:24]} {[%emt 00:00:37]}
Ne7 {[%clk 01:32:36]} {[%emt 00:01:34]} 17. Nd6+ {[%clk 01:29:59]} {[%emt
00:00:55]} Kf8 {[%clk 01:32:37]} {[%emt 00:00:29]} 18. f5 {[%clk 01:29:46]}
{[%emt 00:00:42]} exf5 {[%clk 01:32:56]} {[%emt 00:00:11]} 19. gxf5 {[%clk
01:30:09]} {[%emt 00:00:07]} Nxf5 {[%clk 01:33:18]} {[%emt 00:00:08]} 20. Nxf5
{[%clk 01:30:10]} {[%emt 00:00:29]} Rc8 {[%clk 01:33:18]} {[%emt 00:00:30]} 21.
Nxd5 {[%clk 01:29:14]} {[%emt 00:01:26]} Qxc1 {[%clk 01:27:08]} {[%emt
00:06:40]} 22. Qxa5 {[%clk 01:28:49]} {[%emt 00:00:55]} Qc5+ {[%clk 01:27:31]}
{[%emt 00:00:07]} 23. Qxc5+ {[%clk 01:29:12]} {[%emt 00:00:07]} Rxc5 {[%clk
01:27:33]} {[%emt 00:00:28]} 24. Nfe3 {[%clk 01:29:12]} {[%emt 00:00:30]} Be4
{[%clk 01:18:46]} {[%emt 00:09:17]} 25. e6 {[%clk 01:28:53]} {[%emt 00:00:50]}
Bxd5 {[%clk 01:17:00]} {[%emt 00:02:15]} 26. Nxd5 {[%clk 01:28:37]} {[%emt
00:00:46]} Rxd5 {[%clk 01:17:22]} {[%emt 00:00:08]} 27. Rxf7+ {[%clk 01:29:01]}
Ke8 {[%clk 01:17:46]} {[%emt 00:00:13]} 28. Rxb7 {[%clk 01:29:20]} {[%emt
00:00:10]} Rg5+ {[%clk 01:16:44]} {[%emt 00:01:32]} 29. Kh1 {[%clk 01:18:34]}
{[%emt 00:11:16]} Rf8 {[%clk 01:14:02]} {[%emt 00:03:12]} 30. Bb5+ {[%clk
01:16:16]} {[%emt 00:02:49]} Rxb5 {[%clk 01:13:56]} {[%emt 00:00:36]} 1/2-1/2

[Event "NJSK 2023 Jeugd A"]
[Site "Almelo, Netherlands"]
[Date "2023.05.04"]
[Round "5.5"]
[White "Alvares, Thomas"]
[Black "Boeren, Jurriaan"]
[Result "0-1"]
[TimeControl "90min/40moves + 30min + 30sec/move"]
[WhiteElo "1825"]
[BlackElo "1979"]

1. e4 {[%clk 01:30:58]} {[%emt 00:00:01]} e5 {[%clk 01:30:46]} {[%emt
00:00:15]} 2. Nf3 {[%clk 01:31:22]} {[%emt 00:00:06]} Nc6 {[%emt 00:00:14]} 3.
Bb5 {[%clk 01:31:41]} a6 {[%clk 01:31:19]} {[%emt 00:00:21]} 4. Ba4 {[%clk
01:31:51]} {[%emt 00:00:21]} Nf6 {[%clk 01:31:41]} {[%emt 00:00:08]} 5. d3
{[%clk 01:32:05]} {[%emt 00:00:17]} d6 {[%clk 01:31:10]} {[%emt 00:01:01]} 6.
c3 {[%clk 01:31:13]} {[%emt 00:01:22]} g6 {[%clk 01:31:04]} {[%emt 00:00:36]} 7.
O-O {[%clk 01:30:41]} {[%emt 00:01:02]} Bg7 {[%clk 01:31:12]} {[%emt 00:00:22]}
8. Re1 {[%clk 01:30:39]} {[%emt 00:00:32]} O-O {[%clk 01:30:43]} {[%emt
00:00:59]} 9. Nbd2 {[%clk 01:29:26]} {[%emt 00:01:43]} Re8 {[%clk 01:16:28]}
{[%emt 00:14:45]} 10. h3 {[%clk 01:22:43]} {[%emt 00:07:12]} Nd7 {[%clk
01:12:27]} {[%emt 00:04:32]} 11. Nf1 {[%clk 01:21:06]} {[%emt 00:02:06]} Nb6
{[%clk 01:08:05]} {[%emt 00:04:52]} 12. Bb3 {[%clk 01:18:08]} {[%emt 00:03:28]}
d5 {[%clk 01:04:00]} {[%emt 00:04:35]} 13. Ng3 {[%clk 01:05:58]} {[%emt
00:12:40]} Na5 {[%clk 00:49:40]} {[%emt 00:14:51]} 14. Bc2 {[%clk 01:05:32]}
{[%emt 00:00:55]} c5 {[%clk 00:48:51]} {[%emt 00:01:19]} 15. Qe2 {[%clk
00:52:36]} {[%emt 00:13:26]} Qc7 {[%clk 00:47:27]} {[%emt 00:01:55]} 16. Bd2
{[%clk 00:48:59]} {[%emt 00:04:08]} Nc6 {[%clk 00:44:25]} {[%emt 00:03:31]} 17.
exd5 {[%clk 00:47:13]} {[%emt 00:02:16]} Nxd5 {[%clk 00:44:23]} {[%emt
00:00:32]} 18. Ne4 {[%clk 00:46:28]} {[%emt 00:01:15]} b6 {[%clk 00:42:45]}
{[%emt 00:02:09]} 19. Bb3 {[%clk 00:43:59]} {[%emt 00:03:00]} Nce7 {[%clk
00:40:17]} {[%emt 00:02:57]} 20. d4 {[%clk 00:39:56]} {[%emt 00:04:32]} exd4
{[%clk 00:35:53]} {[%emt 00:04:53]} 21. cxd4 {[%clk 00:37:49]} {[%emt
00:02:37]} cxd4 {[%clk 00:30:39]} {[%emt 00:05:45]} 22. Rac1 {[%clk 00:36:38]}
{[%emt 00:01:41]} Qd7 {[%clk 00:30:24]} {[%emt 00:00:45]} 23. Qc4 {[%clk
00:25:44]} {[%emt 00:11:23]} Bb7 {[%clk 00:26:43]} {[%emt 00:04:12]} 24. Bg5
{[%clk 00:16:24]} {[%emt 00:09:50]} Rac8 {[%clk 00:24:47]} {[%emt 00:02:26]} 25.
Qd3 {[%clk 00:16:39]} {[%emt 00:00:14]} h6 {[%clk 00:19:14]} {[%emt 00:06:03]}
26. Bd2 {[%clk 00:14:49]} {[%emt 00:02:20]} Nc6 {[%clk 00:15:09]} {[%emt
00:04:35]} 27. a3 {[%clk 00:13:11]} {[%emt 00:02:08]} Qf5 {[%clk 00:12:48]}
{[%emt 00:02:51]} 28. Bc2 {[%clk 00:11:42]} {[%emt 00:01:58]} Rcd8 {[%clk
00:11:29]} {[%emt 00:01:49]} 29. Qb3 {[%clk 00:09:42]} {[%emt 00:02:30]} Qd7
{[%clk 00:10:35]} {[%emt 00:01:24]} 30. Bd3 {[%clk 00:08:09]} {[%emt 00:02:03]}
Ne5 {[%clk 00:09:46]} {[%emt 00:01:19]} 31. Nxe5 {[%clk 00:08:06]} {[%emt
00:00:33]} Rxe5 {[%clk 00:10:11]} {[%emt 00:00:05]} 32. Bc4 {[%clk 00:07:24]}
{[%emt 00:01:12]} Qf5 {[%clk 00:08:41]} {[%emt 00:02:00]} 33. Ng3 {[%clk
00:07:14]} {[%emt 00:00:40]} Rxe1+ {[%clk 00:08:30]} {[%emt 00:00:41]} 34. Rxe1
{[%clk 00:07:33]} {[%emt 00:00:11]} Qd7 {[%clk 00:08:44]} {[%emt 00:00:15]} 35.
Qd3 {[%clk 00:05:43]} {[%emt 00:02:21]} Qc6 {[%clk 00:06:53]} {[%emt 00:02:22]}
36. Bxa6 {[%clk 00:04:08]} {[%emt 00:02:03]} Ba8 {[%clk 00:04:50]} {[%emt
00:02:36]} 37. Bb5 {[%clk 00:03:58]} {[%emt 00:00:39]} Nf4 {[%clk 00:04:12]}
{[%emt 00:01:08]} 38. Bxc6 {[%clk 00:03:02]} {[%emt 00:01:26]} Nxd3 {[%clk
00:04:38]} {[%emt 00:00:04]} 39. Re8+ {[%clk 00:02:39]} {[%emt 00:00:53]} Rxe8
{[%clk 00:05:05]} {[%emt 00:00:04]} 40. Bxe8 {[%clk 00:03:06]} {[%emt
00:00:03]} Nxb2 {[%clk 00:04:02]} {[%emt 00:01:33]} 41. Bb5 {[%clk 00:29:18]}
{[%emt 00:04:17]} Bd5 {[%clk 00:31:18]} {[%emt 00:03:14]} 42. Nf1 {[%clk
00:23:30]} {[%emt 00:06:19]} Bf8 {[%clk 00:24:29]} {[%emt 00:07:20]} 43. a4
{[%clk 00:21:21]} {[%emt 00:02:39]} Nc4 {[%clk 00:20:10]} {[%emt 00:04:48]} 44.
Bc1 {[%clk 00:17:13]} {[%emt 00:04:38]} h5 {[%clk 00:11:43]} {[%emt 00:08:57]}
45. h4 {[%clk 00:17:14]} {[%emt 00:00:29]} Bb4 {[%clk 00:10:57]} {[%emt
00:01:16]} 46. g3 {[%clk 00:15:10]} {[%emt 00:02:33]} Ne5 {[%clk 00:10:45]}
{[%emt 00:00:43]} 47. f4 {[%clk 00:13:21]} {[%emt 00:02:19]} Ng4 {[%clk
00:08:47]} {[%emt 00:02:28]} 48. Nd2 {[%clk 00:11:22]} {[%emt 00:02:29]} Kf8
{[%clk 00:07:09]} {[%emt 00:02:07]} 49. Kf1 {[%clk 00:11:24]} {[%emt 00:00:27]}
Ke7 {[%clk 00:07:27]} {[%emt 00:00:14]} 50. Nc4 {[%clk 00:09:00]} {[%emt
00:02:54]} Bc5 {[%clk 00:06:56]} {[%emt 00:01:01]} 51. Bd2 {[%clk 00:07:04]}
{[%emt 00:02:26]} Kf6 {[%clk 00:06:26]} {[%emt 00:01:00]} 52. a5 {[%clk
00:06:28]} {[%emt 00:01:06]} bxa5 {[%clk 00:06:12]} {[%emt 00:00:43]} 53. Bxa5
{[%clk 00:06:49]} {[%emt 00:00:09]} Bxc4+ {[%emt 00:00:59]} 0-1

[Event "NJSK 2023 Jeugd A"]
[Site "Almelo, Netherlands"]
[Date "2023.05.04"]
[Round "5.6"]
[White "Smid, Jelle"]
[Black "Knol, Daniel"]
[Result "1/2-1/2"]
[TimeControl "90min/40moves + 30min + 30sec/move"]
[WhiteElo "1776"]
[BlackElo "1819"]

1. e4 {[%clk 01:30:58]} c5 {[%clk 01:30:57]} {[%emt 00:00:04]} 2. Nf3 {[%clk
01:31:25]} {[%emt 00:00:03]} e6 {[%clk 01:31:25]} {[%emt 00:00:02]} 3. d4
{[%clk 01:31:33]} {[%emt 00:00:22]} cxd4 {[%clk 01:31:54]} {[%emt 00:00:02]} 4.
Nxd4 {[%clk 01:31:54]} {[%emt 00:00:08]} Nf6 {[%clk 01:32:21]} {[%emt
00:00:04]} 5. Nc3 {[%clk 01:32:10]} {[%emt 00:00:14]} Nc6 {[%clk 01:32:45]}
{[%emt 00:00:06]} 6. a3 {[%clk 01:31:31]} {[%emt 00:01:09]} d5 {[%clk
01:31:40]} {[%emt 00:01:35]} 7. exd5 {[%clk 01:25:03]} {[%emt 00:06:58]} Nxd5
{[%clk 01:31:46]} {[%emt 00:00:25]} 8. Nxc6 {[%clk 01:25:01]} {[%emt 00:00:31]}
bxc6 {[%clk 01:32:15]} 9. Ne4 {[%clk 01:20:11]} {[%emt 00:05:20]} Be7 {[%clk
01:31:08]} {[%emt 00:01:37]} 10. c4 {[%clk 01:15:11]} {[%emt 00:05:30]} Nf6
{[%clk 01:31:09]} {[%emt 00:00:30]} 11. Qxd8+ {[%clk 01:09:02]} {[%emt
00:06:39]} Bxd8 {[%clk 01:31:19]} {[%emt 00:00:20]} 12. Nd6+ {[%clk 01:09:05]}
{[%emt 00:00:27]} Ke7 {[%clk 01:31:18]} {[%emt 00:00:31]} 13. Nxc8+ {[%clk
01:08:58]} {[%emt 00:00:38]} Rxc8 {[%clk 01:31:47]} {[%emt 00:00:01]} 14. Be2
{[%clk 01:06:04]} {[%emt 00:03:23]} Bb6 {[%clk 01:29:16]} {[%emt 00:03:02]} 15.
O-O {[%clk 01:05:14]} {[%emt 00:01:19]} Rhd8 {[%clk 01:28:35]} {[%emt
00:01:11]} 16. Bf3 {[%clk 00:59:31]} {[%emt 00:06:12]} Nd7 {[%clk 01:21:39]}
{[%emt 00:07:27]} 17. b4 {[%clk 00:55:36]} {[%emt 00:04:24]} Ne5 {[%clk
01:02:10]} {[%emt 00:19:59]} 18. c5 {[%clk 00:49:13]} {[%emt 00:06:54]} Nxf3+
{[%clk 01:02:30]} {[%emt 00:00:09]} 19. gxf3 {[%clk 00:49:38]} {[%emt
00:00:05]} Bc7 {[%clk 01:02:31]} {[%emt 00:00:30]} 20. Be3 {[%clk 00:38:24]}
{[%emt 00:11:43]} Be5 {[%clk 00:59:52]} {[%emt 00:03:08]} 21. Ra2 {[%clk
00:35:32]} {[%emt 00:03:23]} Rd3 {[%clk 00:58:32]} {[%emt 00:01:50]} 22. Rb1
{[%clk 00:33:10]} {[%emt 00:02:52]} a6 {[%clk 00:55:48]} {[%emt 00:03:15]} 23.
Kg2 {[%clk 00:27:42]} {[%emt 00:05:57]} Rb8 {[%clk 00:52:29]} {[%emt 00:03:49]}
24. f4 {[%clk 00:27:36]} {[%emt 00:00:36]} Bf6 {[%clk 00:40:08]} {[%emt
00:12:50]} 25. Kf3 {[%clk 00:26:12]} {[%emt 00:01:54]} Rd5 {[%clk 00:34:33]}
{[%emt 00:06:06]} 26. Rd2 {[%clk 00:24:47]} {[%emt 00:01:54]} a5 {[%clk
00:28:18]} {[%emt 00:06:46]} 27. Rxd5 {[%clk 00:22:27]} {[%emt 00:02:50]} exd5
{[%clk 00:28:48]} 28. Bd2 {[%clk 00:18:31]} {[%emt 00:04:26]} axb4 {[%clk
00:29:13]} {[%emt 00:00:06]} 29. Re1+ {[%clk 00:16:49]} {[%emt 00:02:10]} Kd7
{[%clk 00:29:28]} {[%emt 00:00:15]} 30. Bxb4 {[%clk 00:16:51]} {[%emt
00:00:27]} Re8 {[%clk 00:25:18]} {[%emt 00:04:41]} 31. Rb1 {[%clk 00:14:48]}
{[%emt 00:02:33]} Rb8 {[%clk 00:24:40]} {[%emt 00:01:07]} 32. Re1 {[%clk
00:14:49]} {[%emt 00:00:29]} Kc7 {[%clk 00:18:51]} {[%emt 00:06:20]} 33. Rb1
{[%clk 00:13:36]} {[%emt 00:01:43]} Kd7 {[%clk 00:10:35]} {[%emt 00:08:47]} 34.
Re1 {[%clk 00:13:45]} {[%emt 00:00:20]} 1/2-1/2

[Event "NJSK 2023 Jeugd A"]
[Site "Almelo, Netherlands"]
[Date "2023.05.04"]
[Round "5.7"]
[White "Adams, Oscar"]
[Black "Goudriaan, Rafael"]
[Result "0-1"]
[TimeControl "90min/40moves + 30min + 30sec/move"]
[WhiteElo "1760"]
[BlackElo "1992"]

1. f4 {[%clk 01:30:58]} e5 {[%clk 01:30:56]} {[%emt 00:00:04]} 2. fxe5 {[%clk
01:31:24]} {[%emt 00:00:03]} d6 {[%clk 01:31:26]} {[%emt 00:00:01]} 3. exd6
{[%clk 01:31:28]} {[%emt 00:00:26]} Bxd6 {[%clk 01:31:53]} {[%emt 00:00:02]} 4.
Nf3 {[%emt 00:00:17]} g5 {[%clk 01:32:19]} 5. g3 {[%clk 01:32:10]} {[%emt
00:00:06]} g4 {[%clk 01:32:45]} {[%emt 00:00:04]} 6. Nh4 {[%clk 01:32:38]}
{[%emt 00:00:03]} Ne7 {[%clk 01:33:05]} {[%emt 00:00:09]} 7. d4 {[%clk
01:33:02]} {[%emt 00:00:07]} Ng6 {[%clk 01:33:30]} {[%emt 00:00:04]} 8. Nxg6
{[%clk 01:33:23]} {[%emt 00:00:10]} hxg6 {[%clk 01:33:57]} {[%emt 00:00:01]} 9.
Qd3 {[%clk 01:33:43]} {[%emt 00:00:12]} Nc6 {[%clk 01:34:22]} {[%emt 00:00:05]}
10. c3 {[%clk 01:34:02]} {[%emt 00:00:11]} Qe7 {[%clk 01:34:48]} {[%emt
00:00:03]} 11. e4 {[%clk 01:34:25]} {[%emt 00:00:09]} Be6 {[%clk 01:33:04]}
{[%emt 00:02:13]} 12. Bg2 {[%clk 01:31:33]} {[%emt 00:03:22]} O-O-O {[%clk
01:33:04]} {[%emt 00:00:29]} 13. Bf4 {[%clk 01:30:50]} {[%emt 00:01:13]} Bxf4
{[%clk 01:32:35]} {[%emt 00:00:58]} 14. gxf4 {[%clk 01:31:16]} {[%emt
00:00:06]} f5 {[%clk 01:32:24]} {[%emt 00:00:40]} 15. Nd2 {[%clk 01:29:21]}
{[%emt 00:02:26]} fxe4 {[%clk 01:32:01]} {[%emt 00:00:53]} 16. Bxe4 {[%clk
01:29:31]} {[%emt 00:00:20]} Bd5 {[%clk 01:28:33]} {[%emt 00:03:57]} 17. O-O-O
{[%clk 01:29:30]} {[%emt 00:00:31]} Rh3 {[%clk 01:28:32]} {[%emt 00:00:31]} 18.
Qb1 {[%clk 01:26:27]} {[%emt 00:03:27]} Qf6 {[%clk 01:22:27]} {[%emt 00:06:41]}
19. Bxd5 {[%clk 01:24:43]} {[%emt 00:02:14]} Rxd5 {[%clk 01:21:42]} {[%emt
00:01:14]} 20. Qe4 {[%clk 01:24:18]} {[%emt 00:00:56]} Rf5 {[%clk 01:16:29]}
{[%emt 00:05:44]} 21. Rdf1 {[%clk 01:23:36]} {[%emt 00:01:12]} Nd8 {[%clk
01:13:07]} {[%emt 00:03:51]} 22. Nc4 {[%clk 01:21:46]} {[%emt 00:02:20]} Qe6
{[%clk 01:00:20]} {[%emt 00:13:16]} 23. Ne5 {[%clk 01:21:27]} {[%emt 00:00:51]}
Qxa2 {[%clk 00:55:07]} {[%emt 00:05:43]} 24. Nxg6 {[%clk 01:21:24]} {[%emt
00:00:32]} Rb5 {[%clk 00:55:17]} {[%emt 00:00:20]} 25. Qc2 {[%clk 01:15:00]}
{[%emt 00:06:55]} Rd3 {[%clk 00:48:53]} {[%emt 00:06:53]} 26. Rf2 {[%clk
00:59:57]} {[%emt 00:15:34]} Qa1+ {[%clk 00:48:02]} {[%emt 00:01:20]} 27. Qb1
{[%clk 01:00:14]} {[%emt 00:00:13]} Rxc3+ {[%clk 00:48:23]} {[%emt 00:00:09]}
28. Rc2 {[%clk 01:00:22]} {[%emt 00:00:22]} Rxc2+ {[%clk 00:47:28]} {[%emt
00:01:26]} 29. Kxc2 {[%clk 01:00:38]} {[%emt 00:00:13]} Qa4+ {[%clk 00:47:32]}
{[%emt 00:00:26]} 30. Kd3 {[%clk 00:59:45]} {[%emt 00:01:23]} Rb3+ {[%clk
00:47:44]} {[%emt 00:00:19]} 31. Ke4 {[%clk 00:59:25]} {[%emt 00:00:50]} Qc6+
{[%clk 00:47:58]} {[%emt 00:00:16]} 32. Kf5 {[%clk 00:59:36]} {[%emt 00:00:19]}
Qe6+ {[%clk 00:48:24]} {[%emt 00:00:04]} 33. Kg5 {[%clk 00:59:51]} {[%emt
00:00:15]} Nf7+ {[%clk 00:48:48]} {[%emt 00:00:05]} 34. Kh4 {[%clk 00:59:39]}
{[%emt 00:00:43]} Rh3# {[%clk 00:49:10]} {[%emt 00:00:08]} 0-1

[Event "NJSK 2023 Jeugd A"]
[Site "Almelo, Netherlands"]
[Date "2023.05.04"]
[Round "5.8"]
[White "Van Rootselaar, Rik"]
[Black "Bon, Gijs"]
[Result "1-0"]
[TimeControl "90min/40moves + 30min + 30sec/move"]
[WhiteElo "1812"]
[BlackElo "1805"]

1. e4 {[%clk 01:30:58]} {[%emt 00:00:01]} c5 {[%clk 01:14:08]} {[%emt
00:16:53]} 2. Nf3 {[%clk 01:31:21]} {[%emt 00:00:06]} Nc6 {[%clk 01:14:18]}
{[%emt 00:00:21]} 3. Bb5 {[%clk 01:31:21]} {[%emt 00:00:30]} Nf6 {[%clk
01:11:56]} {[%emt 00:02:51]} 4. e5 {[%clk 01:30:51]} {[%emt 00:01:00]} Nd5
{[%clk 01:11:50]} {[%emt 00:00:36]} 5. O-O {[%clk 01:28:11]} {[%emt 00:03:10]}
g6 {[%clk 01:10:55]} {[%emt 00:01:25]} 6. Nc3 {[%clk 01:27:14]} {[%emt
00:01:27]} Nc7 {[%clk 01:10:57]} {[%emt 00:00:28]} 7. Bxc6 {[%clk 01:26:37]}
{[%emt 00:01:07]} dxc6 {[%clk 01:06:41]} {[%emt 00:04:46]} 8. d3 {[%clk
01:24:59]} {[%emt 00:02:08]} Bg4 {[%clk 00:58:45]} {[%emt 00:08:26]} 9. Re1
{[%clk 01:20:45]} {[%emt 00:04:45]} Bg7 {[%clk 00:58:41]} {[%emt 00:00:34]} 10.
h3 {[%clk 01:17:59]} {[%emt 00:03:15]} Bxf3 {[%clk 00:57:38]} {[%emt 00:01:33]}
11. Qxf3 {[%clk 01:18:18]} {[%emt 00:00:11]} O-O {[%clk 00:53:28]} {[%emt
00:04:40]} 12. Ne4 {[%clk 01:17:25]} {[%emt 00:01:23]} Ne6 {[%clk 00:53:50]}
{[%emt 00:00:08]} 13. Qe2 {[%clk 01:04:58]} {[%emt 00:12:58]} Qd4 {[%clk
00:35:48]} {[%emt 00:18:32]} 14. Nd2 {[%clk 00:57:54]} {[%emt 00:07:33]} Rfd8
{[%clk 00:26:23]} {[%emt 00:09:56]} 15. Nb3 {[%clk 00:54:33]} {[%emt 00:03:51]}
Qd5 {[%clk 00:24:18]} {[%emt 00:02:35]} 16. f4 {[%clk 00:53:31]} {[%emt
00:01:31]} b5 {[%clk 00:18:28]} {[%emt 00:06:21]} 17. Be3 {[%clk 00:44:30]}
{[%emt 00:09:31]} Bh6 {[%clk 00:12:45]} {[%emt 00:06:13]} 18. Qf2 {[%clk
00:41:38]} {[%emt 00:03:21]} Nd4 {[%clk 00:11:02]} {[%emt 00:02:13]} 19. Nxc5
{[%clk 00:36:44]} {[%emt 00:05:24]} Qxc5 {[%clk 00:05:29]} {[%emt 00:06:04]} 20.
c3 {[%clk 00:36:59]} {[%emt 00:00:14]} Qd5 {[%clk 00:05:35]} {[%emt 00:00:25]}
21. cxd4 {[%clk 00:35:04]} {[%emt 00:02:24]} e6 {[%clk 00:04:09]} {[%emt
00:01:56]} 22. Rec1 {[%emt 00:01:58]} Bf8 {[%clk 00:04:31]} 23. Rc2 {[%clk
00:31:35]} {[%emt 00:02:38]} a5 {[%clk 00:02:42]} {[%emt 00:02:20]} 24. Kh2
{[%clk 00:26:52]} {[%emt 00:05:12]} b4 {[%clk 00:02:15]} {[%emt 00:00:57]} 25.
g4 {[%clk 00:24:16]} {[%emt 00:03:05]} a4 {[%clk 00:02:00]} {[%emt 00:00:46]}
26. Rc4 {[%clk 00:21:16]} {[%emt 00:03:30]} Qb5 {[%clk 00:00:40]} {[%emt
00:01:51]} 27. f5 {[%clk 00:19:04]} {[%emt 00:02:42]} Be7 {[%clk 00:00:39]}
{[%emt 00:00:31]} 28. Rf1 {[%clk 00:17:40]} {[%emt 00:01:53]} Kh8 {[%clk
00:00:31]} {[%emt 00:00:38]} 29. fxe6 {[%clk 00:14:38]} {[%emt 00:03:32]} fxe6
{[%clk 00:00:57]} {[%emt 00:00:04]} 30. Bh6 {[%clk 00:14:42]} {[%emt 00:00:27]}
Bf8 {[%clk 00:01:04]} {[%emt 00:00:23]} 31. Qf6+ {[%clk 00:14:58]} {[%emt
00:00:13]} Kg8 {[%clk 00:00:59]} {[%emt 00:00:36]} 32. Qxe6+ {[%clk 00:14:16]}
{[%emt 00:01:12]} Kh8 {[%clk 00:01:23]} {[%emt 00:00:06]} 33. Rxf8+ {[%clk
00:13:09]} {[%emt 00:01:37]} Rxf8 {[%clk 00:01:38]} {[%emt 00:00:15]} 34. Qe7
{[%emt 00:03:49]} 1-0